bitfinex/quotes_SOLUSD_20240818
["timestamp","ask_amount","ask_price","bid_price","bid_amount"]
[1724001483589,11.69098287,145.62,145.57,15.1796]
[1724001483892,7.47282452,145.61,145.57,15.1796]
[1724001484097,11.69098287,145.62,145.57,15.1796]
[1724001484295,7.47088213,145.61,145.57,15.1796]
[1724001484590,11.69098287,145.62,145.57,15.1796]
[1724001484768,7.47087976,145.61,145.57,15.1796]
[1724001484962,11.69098287,145.62,145.57,15.1796]
[1724001485170,7.47086475,145.61,145.57,24.0596]
[1724001485387,45.0,145.64,145.58,1.37344883]
[1724001485694,19.15758523,145.63,145.57,24.0596]
[1724001485994,7.47078995,145.62,145.57,24.0596]
[1724001486312,7.47078995,145.61,145.57,24.0596]
[1724001486589,25.0824,145.68,145.59,8.88]
[1724001486590,11.68679528,145.67,145.59,8.88]
[1724001486783,19.15893702,145.66,145.59,8.88]
[1724001486985,19.15893702,145.65,145.59,8.88]
[1724001487183,7.47214174,145.64,145.59,8.88]
[1724001487496,7.47214174,145.63,145.59,8.88]
[1724001487699,7.47214174,145.62,145.59,8.88]
[1724001487898,11.68679528,145.66,145.59,8.88]
[1724001488194,19.15831919,145.65,145.59,8.88]
[1724001488381,19.15831919,145.64,145.59,8.88]
[1724001488694,7.47152391,145.63,145.59,8.88]
[1724001488899,7.47152391,145.62,145.59,8.88]
[1724001489077,11.68679528,145.64,145.59,8.88]
[1724001489278,6.8649,145.67,145.59,8.88]
[1724001489589,64.15468504,145.66,145.59,8.88]
[1724001489775,19.15468504,145.65,145.59,8.88]
[1724001489982,7.47052213,145.64,145.59,8.88]
[1724001490178,7.47052213,145.63,145.59,8.88]
[1724001490393,11.68637372,145.66,145.59,8.88]
[1724001490700,19.15800701,145.65,145.59,8.88]
[1724001490872,7.47163329,145.64,145.59,8.88]
[1724001491073,7.47163329,145.63,145.61,8.88]
[1724001491377,11.68637372,145.67,145.61,8.88]
[1724001491585,19.16064092,145.66,145.61,8.88]
[1724001491892,7.4742672,145.65,145.61,8.88]
[1724001492090,7.4742672,145.64,145.61,8.88]
[1724001492289,11.68637372,145.66,145.61,8.88]
[1724001492474,19.16091185,145.65,145.61,8.88]
[1724001492677,7.47453813,145.64,145.6,6.0273]
[1724001492889,18.55127372,145.67,145.6,6.0273]
[1724001493071,19.16200616,145.66,145.6,14.9073]
[1724001493268,19.16200616,145.65,145.6,14.9073]
[1724001493591,7.47563244,145.64,145.6,14.9073]
[1724001493899,6.8644,145.68,145.6,14.9073]
[1724001493900,7.47563244,145.63,145.6,14.9073]
[1724001494071,11.68637372,145.67,145.6,6.0273]
[1724001494409,19.16262905,145.66,145.6,6.0273]
[1724001494581,19.16262905,145.65,145.6,6.0273]
[1724001494892,19.16262905,145.64,145.6,6.0273]
[1724001495101,7.47625533,145.63,145.6,6.0273]
[1724001495280,7.47625533,145.62,145.6,6.0273]
[1724001495591,11.68637372,145.64,145.6,6.0273]
[1724001495816,6.8649,145.67,145.6,6.0273]
[1724001495817,7.47664454,145.63,145.6,6.0273]
[1724001495983,7.47664454,145.62,145.6,6.0273]
[1724001496291,11.68637372,145.64,145.6,6.0273]
[1724001496496,7.47662452,145.63,145.6,6.0273]
[1724001496801,7.47662452,145.62,145.6,6.0273]
[1724001497093,11.68637372,145.64,145.6,6.0273]
[1724001497296,7.4758479,145.63,145.6,6.0273]
[1724001497498,7.4758479,145.62,145.6,6.0273]
[1724001497686,11.68637372,145.64,145.6,6.0273]
[1724001497885,7.4761199,145.63,145.6,6.0273]
[1724001498085,11.68637372,145.65,145.6,6.0273]
[1724001498398,7.47622986,145.64,145.6,6.0273]
[1724001498608,7.47622986,145.63,145.6,6.0273]
[1724001498903,11.68637372,145.66,145.6,14.9073]
[1724001499102,19.16278527,145.65,145.6,14.9073]
[1724001499304,7.47641155,145.64,145.6,14.9073]
[1724001499618,11.68637372,145.66,145.6,14.9073]
[1724001499817,6.8643,145.68,145.6,14.9073]
[1724001499818,19.16214367,145.65,145.6,14.9073]
[1724001500027,7.47576995,145.64,145.6,6.0273]
[1724001500315,7.47576995,145.63,145.6,6.0273]
[1724001500512,7.47576995,145.62,145.6,6.0273]
[1724001500713,6.8649,145.67,145.6,6.0273]
[1724001500714,11.68637372,145.64,145.6,6.0273]
[1724001500906,7.47582652,145.63,145.6,6.0273]
[1724001501097,7.47582652,145.62,145.6,6.0273]
[1724001501295,11.68637372,145.64,145.6,6.0273]
[1724001501496,6.8649,145.67,145.6,5.0273]
[1724001501701,19.1701767,145.66,145.6,5.0273]
[1724001501997,19.17033683,145.65,145.6,5.0273]
[1724001502199,19.17034002,145.64,145.6,5.0273]
[1724001502399,7.47576493,145.63,145.6,5.0273]
[1724001502605,7.47576493,145.62,145.6,5.0273]
[1724001502809,6.8649,145.67,145.6,5.0273]
[1724001502810,11.69457509,145.64,145.6,5.0273]
[1724001503025,7.47502658,145.63,145.6,5.0273]
[1724001503207,7.47502658,145.62,145.6,5.0273]
[1724001503402,11.69457509,145.64,145.6,5.0273]
[1724001503722,7.470836,145.63,145.6,5.0273]
[1724001504026,7.47085796,145.62,145.6,5.0273]
[1724001504317,7.46964368,145.61,145.54,24.1285]
[1724001504520,7.46964368,145.6,145.54,25.5022923]
[1724001504707,11.69457509,145.61,145.55,6.5511]
[1724001504910,7.46974907,145.6,145.55,6.5511]
[1724001505209,7.46914809,145.59,145.55,6.5511]
[1724001505410,11.69457509,145.61,145.55,6.5511]
[1724001505711,6.8667,145.63,145.55,6.5511]
[1724001506017,64.15618068,145.62,145.55,6.5511]
[1724001506328,19.15618068,145.61,145.56,20.0]
[1724001506620,7.47024167,145.6,145.56,20.0]
[1724001506799,11.68593901,145.61,145.56,20.0]
[1724001507000,7.4716655,145.6,145.56,20.0]
[1724001507216,7.4716655,145.59,145.56,20.0]
[1724001507424,11.68631024,145.61,145.56,20.0]
[1724001507602,7.47061953,145.6,145.56,20.0]
[1724001507814,7.47061953,145.59,145.56,20.0]
[1724001508126,11.68653133,145.61,145.56,20.0]
[1724001508321,7.47062099,145.6,145.56,20.0]
[1724001508630,7.47062099,145.59,145.56,20.0]
[1724001508803,11.68653133,145.61,145.56,20.0]
[1724001509136,7.47078439,145.6,145.56,28.88]
[1724001509431,8.88,145.66,145.58,8.88]
[1724001509432,11.68653133,145.63,145.58,8.88]
[1724001509728,7.47165695,145.62,145.58,8.88]
[1724001510029,11.68814983,145.64,145.58,8.88]
[1724001510339,7.4719421,145.63,145.58,8.88]
[1724001510630,7.4719421,145.62,145.58,8.88]
[1724001510817,11.68859657,145.64,145.58,8.88]
[1724001511000,7.47198244,145.63,145.58,8.88]
[1724001511200,8.88,145.69,145.6,8.88]
[1724001511402,19.16128533,145.68,145.6,24.1285]
[1724001511596,8.88,145.69,145.6,24.1285]
[1724001511597,19.16128533,145.67,145.6,24.1285]
[1724001511902,19.16128533,145.66,145.6,24.1285]
[1724001512100,7.47268876,145.65,145.6,24.1285]
[1724001512405,18.55329657,145.68,145.6,24.1285]
[1724001512406,7.47268876,145.64,145.6,24.1285]
[1724001512711,11.68859657,145.66,145.6,24.1285]
[1724001512902,7.47320987,145.65,145.6,24.1285]
[1724001513102,7.47320987,145.64,145.6,24.1285]
[1724001513305,11.68859657,145.67,145.6,24.1285]
[1724001513615,19.16204927,145.66,145.6,24.1285]
[1724001513814,6.8647,145.68,145.6,24.1285]
[1724001514014,19.16592643,145.67,145.6,24.1285]
[1724001514325,19.16592643,145.66,145.6,30.6796]
[1724001514532,16.0534,145.7,145.6,30.6796]
[1724001514732,64.170672,145.69,145.6,30.6796]
[1724001514937,19.170672,145.68,145.6,30.6796]
[1724001515233,19.170672,145.67,145.6,30.6796]
[1724001515530,19.170672,145.66,145.6,30.6796]
[1724001515732,7.47589526,145.65,145.62,8.88]
[1724001516037,11.69477674,145.67,145.63,1.37313003]
[1724001516219,7.47644617,145.66,145.63,1.37313003]
[1724001516408,7.47644617,145.65,145.63,1.37313003]
[1724001516737,11.69477674,145.68,145.63,1.37313003]
[1724001516908,19.16868867,145.67,145.63,1.37313003]
[1724001517234,7.47391193,145.66,145.63,1.37313003]
[1724001517438,7.47391193,145.65,145.64,8.88]
[1724001517617,11.69477674,145.73,145.64,50.7192]
[1724001517804,19.17137065,145.72,145.65,20.0]
[1724001518003,7.47659391,145.71,145.65,20.0]
[1724001518207,11.69477674,145.73,145.68,8.88]
[1724001518404,6.861,145.75,145.69,1.37256439]
[1724001518637,19.17819102,145.74,145.69,1.37256439]
[1724001518837,7.47883149,145.73,145.69,1.37256439]
[1724001519041,7.47883149,145.72,145.69,1.37256439]
[1724001519219,6.861,145.75,145.69,1.37256439]
[1724001519417,7.47873018,145.74,145.68,8.88]
[1724001519718,7.47873018,145.73,145.68,8.88]
[1724001519914,7.47873018,145.72,145.69,1.37256506]
[1724001520237,6.861,145.75,145.68,8.88]
[1724001520529,7.47876478,145.74,145.66,8.88]
[1724001520737,7.47876478,145.73,145.67,20.0]
[1724001520936,6.861,145.75,145.67,20.0]
[1724001521234,52.47865615,145.74,145.67,20.0]
[1724001521417,7.47865615,145.73,145.67,20.0]
[1724001521733,45.0,145.74,145.67,20.0]
[1724001522036,7.47869892,145.73,145.67,20.0]
[1724001522231,45.0,145.74,145.67,20.0]
[1724001522434,7.47871547,145.73,145.67,20.0]
[1724001522615,7.47812461,145.72,145.67,20.0]
[1724001522815,6.862,145.73,145.67,20.0]
[1724001523013,52.47810142,145.72,145.67,20.0]
[1724001523223,45.0,145.72,145.67,20.0]
[1724001524034,7.47785068,145.71,145.64,21.8392]
[1724001524237,45.0,145.72,145.65,20.0]
[1724001524428,7.47775162,145.71,145.65,20.0]
[1724001524623,45.0,145.72,145.65,20.0]
[1724001524825,7.47748011,145.71,145.65,20.0]
[1724001525032,45.0,145.7,145.65,20.0]
[1724001525249,45.0,145.72,145.65,20.0]
[1724001526524,6.8615,145.74,145.66,8.88]
[1724001526716,45.0,145.73,145.66,8.88]
[1724001526920,6.8615,145.74,145.66,8.88]
[1724001527119,6.8611,145.75,145.68,8.88]
[1724001527321,7.4791172,145.74,145.68,8.88]
[1724001527521,6.8611,145.75,145.68,8.88]
[1724001527731,7.47920185,145.74,145.68,8.88]
[1724001527946,6.8611,145.75,145.68,8.88]
[1724001528154,7.47923923,145.74,145.68,8.88]
[1724001528334,1.7157561,145.73,145.66,8.88]
[1724001528534,1.7157561,145.73,145.67,20.0]
[1724001531535,6.8628,145.72,145.64,30.7192]
[1724001531748,6.8628,145.72,145.65,20.0]
[1724001531749,1.71608365,145.71,145.65,20.0]
[1724001532555,51.862,145.73,145.65,20.0]
[1724001532752,6.8615,145.74,145.66,8.88]
[1724001533450,61.05647305,145.73,145.66,8.88]
[1724001533647,1.71600874,145.72,145.66,8.88]
[1724001534040,51.8621,145.73,145.66,8.88]
[1724001534247,1.71602968,145.72,145.66,8.88]
[1724001534551,51.8621,145.73,145.66,8.88]
[1724001535354,45.0,145.73,145.66,8.88]
[1724001535736,8.88,145.75,145.68,8.88]
[1724001535737,6.861,145.75,145.68,8.88]
[1724001537971,16.77905465,145.78,145.68,8.88]
[1724001538166,6.8609,145.76,145.68,8.88]
[1724001538341,45.0,145.75,145.68,8.88]
[1724001538743,1.71565728,145.74,145.66,8.88]
[1724001538964,51.8611,145.75,145.67,20.0]
[1724001540744,51.8611,145.75,145.68,8.88]
[1724001540952,6.8609,145.76,145.68,8.88]
[1724001541473,1.71565705,145.75,145.68,8.88]
[1724001541655,6.8613,145.75,145.68,8.88]
[1724001542271,51.8616,145.74,145.67,20.0]
[1724001542476,8.57791599,145.73,145.66,8.88]
[1724001542773,53.88,145.74,145.66,8.88]
[1724001542774,51.8626,145.72,145.66,8.88]
[1724001545181,6.862,145.73,145.66,8.88]
[1724001545352,45.0,145.72,145.66,8.88]
[1724001545547,6.8616,145.74,145.66,8.88]
[1724001545856,45.0,145.73,145.66,8.88]
[1724001546251,51.862,145.73,145.66,8.88]
[1724001551969,6.8626,145.72,145.66,8.88]
[1724001552170,45.0,145.71,145.64,21.8392]
[1724001552659,1.71637559,145.7,145.64,21.8392]
[1724001552861,45.0,145.71,145.64,21.8392]
[1724001553185,9.20421149,145.7,145.64,21.8392]
[1724001553353,45.0,145.69,145.64,21.8392]
[1724001553553,8.57977364,145.7,145.64,21.8392]
[1724001553752,45.0,145.69,145.64,21.8392]
[1724001553967,45.0,145.69,145.64,6.0261]
[1724001554364,45.0,145.69,145.63,8.88]
[1724001554568,45.0,145.69,145.64,20.0]
[1724001556481,7.48831077,145.68,145.64,20.0]
[1724001556679,45.0,145.69,145.64,20.0]
[1724001556857,7.4884256,145.68,145.64,20.0]
[1724001557057,7.4884256,145.67,145.64,20.0]
[1724001557258,45.0,145.69,145.64,20.0]
[1724001557464,7.48855658,145.68,145.64,20.0]
[1724001557675,45.0,145.69,145.64,20.0]
[1724001557982,7.48900845,145.68,145.64,20.0]
[1724001558281,45.0,145.69,145.64,20.0]
[1724001558485,7.48898595,145.68,145.64,20.0]
[1724001558667,45.0,145.69,145.64,20.0]
[1724001558858,7.48916041,145.68,145.64,20.0]
[1724001559064,11.71528629,145.7,145.65,8.88]
[1724001559280,7.49240962,145.69,145.65,8.88]
[1724001559481,7.49240962,145.68,145.64,20.0]
[1724001559685,11.71528629,145.7,145.65,8.88]
[1724001559872,7.49245544,145.69,145.65,8.88]
[1724001560073,7.49245544,145.68,145.65,8.88]
[1724001560269,11.71528629,145.71,145.65,8.88]
[1724001560585,19.20856184,145.7,145.65,8.88]
[1724001560885,7.49327555,145.69,145.65,8.88]
[1724001561067,7.49327555,145.68,145.65,8.88]
[1724001561269,7.49327555,145.67,145.65,8.88]
[1724001561468,11.71528629,145.7,145.65,8.88]
[1724001561676,7.49353197,145.69,145.65,8.88]
[1724001561875,11.71528629,145.71,145.65,8.88]
[1724001562070,7.4941854,145.7,145.65,8.88]
[1724001562384,7.49391549,145.69,145.65,8.88]
[1724001562588,7.49391549,145.68,145.65,8.88]
[1724001562796,11.7229606,145.7,145.65,8.88]
[1724001562997,7.49358655,145.69,145.65,8.88]
[1724001563166,7.49358655,145.68,145.63,8.88]
[1724001563498,7.49358655,145.67,145.64,20.0]
[1724001563681,1.71613992,145.68,145.64,20.0]
[1724001563871,7.49334767,145.67,145.64,20.0]
[1724001564193,1.71613992,145.68,145.64,20.0]
[1724001564380,7.49330445,145.67,145.64,20.0]
[1724001564563,11.7229606,145.7,145.64,20.0]
[1724001564769,19.21628305,145.69,145.64,20.0]
[1724001564975,7.49332245,145.68,145.64,20.0]
[1724001565174,7.49332245,145.67,145.64,20.0]
[1724001565392,11.7229606,145.69,145.64,20.0]
[1724001565589,7.49079518,145.68,145.64,20.0]
[1724001565890,7.49079518,145.67,145.64,20.0]
[1724001566092,11.7229606,145.69,145.64,20.0]
[1724001566383,7.49130371,145.68,145.64,20.0]
[1724001566611,7.49130371,145.67,145.61,6.5761]
[1724001566896,6.8663,145.64,145.57,30.1725]
[1724001567074,7.49130371,145.63,145.57,30.1725]
[1724001567398,7.48851242,145.62,145.57,30.1725]
[1724001567567,1.717028,145.63,145.57,30.1725]
[1724001567766,7.48843989,145.62,145.57,30.1725]
[1724001568091,46.717028,145.63,145.57,30.1725]
[1724001568092,45.0,145.63,145.57,30.1725]
[1724001568294,7.48616113,145.62,145.57,30.1725]
[1724001568584,45.0,145.64,145.57,30.1725]
[1724001568791,11.7229606,145.68,145.62,15.0832]
[1724001568967,18.57685809,145.77,145.67,8.88]
[1724001569166,16.1192,145.79,145.66,4.3245]
[1724001569167,18.57745809,145.76,145.7,8.88]
[1724001569369,6.8607,145.76,145.7,8.88]
[1724001569788,6.8602,145.77,145.7,8.88]
[1724001569974,16.1192,145.79,145.7,8.88]
[1724001569975,6.8597,145.78,145.7,8.88]
[1724001570584,6.8597,145.78,145.69,22.18]
[1724001573783,51.8601,145.77,145.69,22.18]
[1724001575491,45.0,145.77,145.69,23.55254586]
[1724001576584,16.1192,145.83,145.73,22.18]
[1724001577305,6.8583,145.81,145.73,22.18]
[1724001578390,40.01442119,145.83,145.71,35.6881]
[1724001578706,20.64,145.82,145.71,35.6881]
[1724001579290,20.64,145.82,145.72,1.37234766]
[1724001579609,6.8588,145.8,145.72,1.37234766]
[1724001579813,45.0,145.79,145.71,35.6881]
[1724001580313,45.0,145.79,145.72,1.37227664]
[1724001580810,7.4602774,145.78,145.72,1.37227664]
[1724001581128,45.0,145.79,145.72,1.37227664]
[1724001581288,7.46027978,145.78,145.71,35.6881]
[1724001581488,45.0,145.79,145.71,35.6881]
[1724001581813,7.45833429,145.78,145.71,35.6881]
[1724001581995,45.0,145.79,145.71,35.6881]
[1724001582194,45.0,145.79,145.72,1.37229459]
[1724001582393,7.45820988,145.78,145.71,35.6881]
[1724001582588,45.0,145.79,145.72,1.37222045]
[1724001582799,7.45821678,145.78,145.71,35.6881]
[1724001583023,16.1192,145.83,145.73,28.2382]
[1724001583319,14.31712394,145.82,145.74,1.37209163]
[1724001583503,7.45902394,145.81,145.74,1.37209163]
[1724001583708,7.45902394,145.8,145.75,22.18]
[1724001583904,22.9766,145.83,145.75,22.18]
[1724001584212,7.45947016,145.82,145.75,22.18]
[1724001584513,7.45947016,145.81,145.75,22.18]
[1724001584702,22.9766,145.83,145.75,22.18]
[1724001584899,7.459615,145.82,145.75,22.18]
[1724001585100,7.45960843,145.81,145.75,22.18]
[1724001585303,22.9766,145.83,145.73,28.2382]
[1724001585489,52.45942989,145.82,145.73,28.2382]
[1724001585688,7.45942989,145.81,145.73,28.2382]
[1724001585890,45.0,145.82,145.73,28.2382]
[1724001586391,7.46018261,145.81,145.73,28.2382]
[1724001586594,45.0,145.82,145.73,28.2382]
[1724001586799,7.459402,145.81,145.73,28.2382]
[1724001587121,45.0,145.82,145.73,28.2382]
[1724001587320,7.45917387,145.81,145.73,28.2382]
[1724001587487,45.0,145.82,145.73,28.2382]
[1724001587692,51.8577,145.82,145.73,28.2382]
[1724001587908,7.45879283,145.81,145.73,28.2382]
[1724001588217,51.8577,145.82,145.73,28.2382]
[1724001589517,6.8582,145.81,145.73,28.2382]
[1724001589691,45.0,145.8,145.73,28.2382]
[1724001597121,6.8577,145.82,145.74,1.37104577]
[1724001597328,45.0,145.81,145.75,22.18]
[1724001597510,0.5,145.85,145.75,22.18]
[1724001597709,0.5,145.85,145.75,23.55167393]
[1724001597913,0.5,145.85,145.76,13.5081]
[1724001597914,7.45724471,145.84,145.76,13.5081]
[1724001598103,7.45724471,145.83,145.77,1.37148573]
[1724001598298,21.14,145.85,145.77,1.37148573]
[1724001598515,21.14,145.85,145.77,10.24148573]
[1724001598516,7.45754118,145.84,145.77,10.24148573]
[1724001598822,52.45754118,145.83,145.77,8.87]
[1724001599021,45.0,145.83,145.77,8.87]
[1724001600513,51.8573,145.83,145.76,13.5081]
[1724001602729,51.8573,145.83,145.73,6.0582]
[1724001602730,6.8583,145.81,145.73,6.0582]
[1724001602922,45.0,145.8,145.73,6.0582]
[1724001605035,30.0,145.77,145.73,6.0582]
[1724001605427,30.0,145.77,145.76,22.17]
[1724001605628,6.8578,145.82,145.76,22.17]
[1724001605947,45.0,145.81,145.76,22.17]
[1724001606530,45.0,145.81,145.74,22.17]
[1724001606730,51.8583,145.81,145.74,22.17]
[1724001606925,51.8583,145.81,145.73,6.0582]
[1724001607142,51.8583,145.81,145.74,20.0]
[1724001608838,51.8583,145.81,145.74,42.17]
[1724001610950,8.57378135,145.8,145.73,6.0582]
[1724001611126,45.0,145.79,145.73,6.0582]
[1724001613323,7.46273847,145.78,145.73,6.0582]
[1724001613524,45.0,145.79,145.73,6.0582]
[1724001613723,7.46272312,145.78,145.73,6.0582]
[1724001613923,45.0,145.79,145.73,6.0582]
[1724001614236,7.46277606,145.78,145.73,6.0582]
[1724001614549,7.46277483,145.77,145.73,6.0582]
[1724001614850,7.46277483,145.76,145.73,6.0582]
[1724001615036,45.0,145.79,145.73,6.0582]
[1724001615243,7.46340986,145.78,145.73,6.0582]
[1724001615434,7.46340986,145.77,145.73,6.0582]
[1724001615633,7.46340986,145.76,145.73,6.0582]
[1724001615838,45.0,145.79,145.73,6.0582]
[1724001616155,7.46357891,145.78,145.73,6.0582]
[1724001616349,7.46357891,145.77,145.73,6.0582]
[1724001616552,7.46357891,145.76,145.73,6.0582]
[1724001616737,45.0,145.79,145.73,6.0582]
[1724001617052,7.46359772,145.78,145.73,6.0582]
[1724001617232,7.46359772,145.77,145.73,6.0582]
[1724001617432,7.46359772,145.76,145.73,6.0582]
[1724001617628,7.46359772,145.75,145.73,6.0582]
[1724001617957,45.0,145.79,145.73,6.0582]
[1724001618262,7.46350207,145.78,145.73,6.0582]
[1724001618425,7.46350207,145.77,145.73,6.0582]
[1724001618626,7.46350207,145.76,145.73,6.0582]
[1724001618832,7.46350207,145.75,145.73,6.0582]
[1724001619048,51.8592,145.79,145.7,28.5283]
[1724001619254,14.32227792,145.78,145.7,28.5283]
[1724001619559,52.46267792,145.77,145.7,28.5283]
[1724001619756,7.46267792,145.76,145.7,28.5283]
[1724001619934,7.46267792,145.75,145.7,28.5283]
[1724001620135,7.46267792,145.74,145.7,28.5283]
[1724001620334,45.0,145.77,145.7,28.5283]
[1724001620552,7.46216019,145.76,145.72,8.87]
[1724001620735,7.46216019,145.75,145.72,8.87]
[1724001621054,7.46220323,145.74,145.72,8.87]
[1724001621641,45.0,145.77,145.72,8.87]
[1724001621837,7.46222353,145.76,145.72,8.87]
[1724001622054,7.46222353,145.75,145.72,8.87]
[1724001622258,7.46222353,145.74,145.72,8.87]
[1724001622434,45.0,145.77,145.72,8.87]
[1724001622640,7.46210426,145.76,145.72,8.87]
[1724001622947,7.46210426,145.75,145.72,8.87]
[1724001623149,7.46210426,145.74,145.72,8.87]
[1724001623335,45.0,145.77,145.72,8.87]
[1724001623541,7.46210413,145.76,145.72,8.87]
[1724001623854,7.46210413,145.75,145.72,8.87]
[1724001624063,7.46210413,145.74,145.72,8.87]
[1724001624243,45.0,145.77,145.72,8.87]
[1724001624445,7.46206109,145.76,145.72,8.87]
[1724001624645,7.46206109,145.75,145.72,8.87]
[1724001624836,7.46206109,145.74,145.72,8.87]
[1724001625040,45.0,145.77,145.72,8.87]
[1724001625477,7.46205375,145.76,145.72,8.87]
[1724001625635,7.46205375,145.75,145.72,8.87]
[1724001625835,7.46205375,145.74,145.72,8.87]
[1724001626059,45.0,145.77,145.72,8.87]
[1724001626361,7.46209678,145.76,145.72,8.87]
[1724001626543,7.46209678,145.75,145.72,8.87]
[1724001626740,7.46209678,145.74,145.72,8.87]
[1724001626964,45.0,145.77,145.72,8.87]
[1724001627266,7.4620609,145.76,145.72,8.87]
[1724001627446,7.4620609,145.75,145.72,8.87]
[1724001627645,7.4620609,145.74,145.72,8.87]
[1724001627843,45.0,145.77,145.72,8.87]
[1724001628046,7.46198223,145.76,145.72,8.87]
[1724001628345,7.46198223,145.75,145.72,8.87]
[1724001628547,7.46198223,145.74,145.72,8.87]
[1724001628735,45.0,145.77,145.72,8.87]
[1724001628932,7.46218494,145.76,145.72,8.87]
[1724001629247,7.46218494,145.75,145.7,6.3583]
[1724001629443,7.46218494,145.74,145.7,6.3583]
[1724001629646,7.46218494,145.73,145.7,6.3583]
[1724001629867,1.71542299,145.76,145.7,6.3583]
[1724001630031,7.46172138,145.75,145.7,6.3583]
[1724001630238,7.46172138,145.74,145.7,6.3583]
[1724001630539,7.46172138,145.73,145.7,6.3583]
[1724001630740,7.46172138,145.72,145.7,6.3583]
[1724001630977,51.8602,145.77,145.69,8.87]
[1724001631160,25.2433,145.75,145.66,6.3583]
[1724001631371,15.7323,145.73,145.65,8.87]
[1724001631576,8.87,145.71,145.62,19.8664]
[1724001631742,6.864,145.69,145.61,8.87]
[1724001631935,52.45940394,145.68,145.61,8.87]
[1724001632151,45.0,145.68,145.61,8.87]
[1724001632672,30.0,145.67,145.61,8.87]
[1724001633343,51.8644,145.68,145.61,8.87]
[1724001633943,45.0,145.68,145.59,19.8664]
[1724001634147,45.0,145.68,145.59,28.7364]
[1724001634148,14.32018446,145.67,145.59,28.7364]
[1724001634355,45.0,145.66,145.59,28.7364]
[1724001634968,6.8649,145.67,145.61,8.87]
[1724001635362,16.3733,145.7,145.61,8.87]
[1724001635549,59.31924249,145.69,145.61,8.87]
[1724001635743,51.8639,145.69,145.61,8.87]
[1724001636147,16.3733,145.7,145.63,8.87]
[1724001636348,16.3733,145.7,145.64,20.0]
[1724001639960,22.3183,145.74,145.65,8.87]
[1724001640165,22.3183,145.74,145.64,20.0]
[1724001640166,52.45873223,145.73,145.67,8.87]
[1724001640366,45.0,145.73,145.67,8.87]
[1724001641043,51.8621,145.73,145.67,8.87]
[1724001641354,45.0,145.73,145.67,8.87]
[1724001645075,45.0,145.73,145.65,6.0455]
[1724001645271,45.0,145.73,145.66,28.87]
[1724001646073,6.8625,145.72,145.66,28.87]
[1724001646275,51.8633,145.71,145.63,8.87]
[1724001646472,1.71626558,145.7,145.64,20.0]
[1724001646681,6.8634,145.7,145.63,8.87]
[1724001646851,6.8639,145.69,145.61,6.0455]
[1724001647047,10.58642538,145.7,145.61,6.0455]
[1724001647277,45.0,145.69,145.61,6.0455]
[1724001647579,1.71658552,145.68,145.61,6.0455]
[1724001647761,1.71659874,145.67,145.61,6.0455]
[1724001647952,6.8647,145.68,145.61,6.0455]
[1724001648158,53.58148607,145.67,145.6,8.87]
[1724001648359,51.8648,145.67,145.6,8.87]
[1724001648562,51.8648,145.67,145.59,13.5081]
[1724001648756,51.8648,145.67,145.6,20.0]
[1724001649073,51.8648,145.67,145.6,42.22]
[1724001649074,45.0,145.67,145.6,42.22]
[1724001650889,51.8648,145.67,145.6,20.0]
[1724001652091,51.8648,145.67,145.61,1.37338033]
[1724001652301,51.8648,145.67,145.6,20.0]
[1724001652592,51.8648,145.67,145.61,1.37329647]